Workbook

Sheet Presupuesto para la boda
B4: Fecha de la boda:
B5: =TODAY()+365 -> 2020-06-26
B7: Categoría | C7: Estimado | D7: Real | E7: Diferencia | F7: Listo
B8: Ropa | C8: =Total_Ropa_estimado -> 9,490.00 | D8: =Total_Ropa_real -> 9,770.00 | E8: =ResumenDelPresupuesto[[#This Row],[Estimado]]-ResumenDelPresupuesto[[#This Row],[Real]] -> -280.00 | F8: =Ropa_terminado -> No
B9: Recepción | C9: =Total_recepción_estimado -> 1,050.00 | D9: =Total_recepción_real -> 928.00 | E9: =ResumenDelPresupuesto[[#This Row],[Estimado]]-ResumenDelPresupuesto[[#This Row],[Real]] -> 122.00 | F9: =Recepción_terminado -> Sí
B10: Música | C10: =Total_Música_entretenimiento_estimado -> 600.00 | D10: =Total_Música_entretenimiento_real -> 500.00 | E10: =ResumenDelPresupuesto[[#This Row],[Estimado]]-ResumenDelPresupuesto[[#This Row],[Real]] -> 100.00 | F10: =Música_terminado -> Sí
B11: Impresión | C11: =Total_Impresión_Artículos_De_Papelería_estimado -> 935.00 | D11: =Total_Impresión_Artículos_De_Papelería_real -> 870.00 | E11: =ResumenDelPresupuesto[[#This Row],[Estimado]]-ResumenDelPresupuesto[[#This Row],[Real]] -> 65.00 | F11: =Impresión_terminado -> No
B12: Fotografía | C12: =Total_Fotografía_estimado -> 1,625.00 | D12: =Total_Fotografía_real -> 1,575.00 | E12: =ResumenDelPresupuesto[[#This Row],[Estimado]]-ResumenDelPresupuesto[[#This Row],[Real]] -> 50.00 | F12: =Fotografía_terminado -> No
B13: Decoración | C13: =Total_Decoración_estimado -> 700.00 | D13: =Total_Decoración_real -> 720.00 | E13: =ResumenDelPresupuesto[[#This Row],[Estimado]]-ResumenDelPresupuesto[[#This Row],[Real]] -> -20.00 | F13: =Decoración_terminado -> Sí
B14: Flores | C14: =Total_Flores_estimado -> 900.00 | D14: =Total_Flores_real -> 850.00 | E14: =ResumenDelPresupuesto[[#This Row],[Estimado]]-ResumenDelPresupuesto[[#This Row],[Real]] -> 50.00 | F14: =Flores_terminado -> No
B15: Regalos | C15: =Total_Regalos_estimado -> 1,345.00 | D15: =Total_Regalos_real -> 1,075.00 | E15: =ResumenDelPresupuesto[[#This Row],[Estimado]]-ResumenDelPresupuesto[[#This Row],[Real]] -> 270.00 | F15: =Regalos_terminado -> No
B16: Viajes | C16: =Total_transporte_viajes_estimado -> 100.00 | D16: =Total_transporte_viajes_real -> 165.00 | E16: =ResumenDelPresupuesto[[#This Row],[Estimado]]-ResumenDelPresupuesto[[#This Row],[Real]] -> -65.00 | F16: =Viajes_terminado -> Sí
B17: Otros | C17: =Total_Otros_Gastos_estimado -> 885.00 | D17: =Total_Otros_Gastos_real -> 1,021.00 | E17: =ResumenDelPresupuesto[[#This Row],[Estimado]]-ResumenDelPresupuesto[[#This Row],[Real]] -> -136.00 | F17: =Otros_terminado -> No
B18: Gastos totales | C18: =SUBTOTAL(109,ResumenDelPresupuesto[Estimado]) -> 17,630.00 | D18: =SUBTOTAL(109,ResumenDelPresupuesto[Real]) -> 17,474.00 | E18: =SUBTOTAL(109,ResumenDelPresupuesto[Diferencia]) -> 156.00
B19: El gráfico en el que se muestra el porcentaje de gastos de cada categoría se encuentra en esta celda.

Sheet Gastos
B2: Ropa
B4: Categoría | C4: Estimado | D4: Real | E4: Diferencia
B5: Anillos de compromiso | C5: 1,500.00 | D5: 1,500.00 | E5: =Gastos!$C5-Gastos!$D5 -> 0.00
B6: Anillo del futuro cónyuge 1 | C6: 2,000.00 | D6: 2,300.00 | E6: =Gastos!$C6-Gastos!$D6 -> -300.00
B7: Vestido o esmoquin del futuro cónyuge 1 | C7: 3,000.00 | D7: 2,750.00 | E7: =Gastos!$C7-Gastos!$D7 -> 250.00
B8: Velo o tocado del futuro cónyuge 1 | C8: 500.00 | D8: 500.00 | E8: =Gastos!$C8-Gastos!$D8 -> 0.00
B9: Zapatos del futuro cónyuge 1 | C9: 350.00 | D9: 300.00 | E9: =Gastos!$C9-Gastos!$D9 -> 50.00
B10: Joyas del futuro cónyuge 1 | C10: 400.00 | D10: 550.00 | E10: =Gastos!$C10-Gastos!$D10 -> -150.00
B11: Medias del futuro cónyuge 1 | C11: 20.00 | D11: 20.00 | E11: =Gastos!$C11-Gastos!$D11 -> 0.00
B12: Anillo del futuro cónyuge 2 | C12: 300.00 | D12: 250.00 | E12: =Gastos!$C12-Gastos!$D12 -> 50.00
B13: Vestido o esmoquin del futuro cónyuge 2 | C13: 300.00 | D13: 350.00 | E13: =Gastos!$C13-Gastos!$D13 -> -50.00
B14: Velo o tocado del futuro cónyuge 2 | C14: 500.00 | D14: 500.00 | E14: =Gastos!$C14-Gastos!$D14 -> 0.00
B15: Zapatos del futuro cónyuge 2 | C15: 200.00 | D15: 175.00 | E15: =Gastos!$C15-Gastos!$D15 -> 25.00
B16: Joyas del futuro cónyuge 2 | C16: 400.00 | D16: 550.00 | E16: =Gastos!$C16-Gastos!$D16 -> -150.00
B17: Medias del futuro cónyuge 2 | C17: 20.00 | D17: 25.00 | E17: =Gastos!$C17-Gastos!$D17 -> -5.00
B18: Total de la ropa | C18: =SUBTOTAL(109,Ropa[Estimado]) -> 9,490.00 | D18: =SUBTOTAL(109,Ropa[Real]) -> 9,770.00 | E18: =SUBTOTAL(109,Ropa[Diferencia]) -> -280.00
D20: ="¿Se han completado todos los gastos en la categoría "&B2&" ?" -> ¿Se han completado todos los gastos en la categoría Ropa ? | E20: No
B22: Recepción*
B24: Categoría | C24: Estimado | D24: Real | E24: Diferencia
B25: Gastos de habitaciones o sala | C25: 200.00 | D25: 150.00 | E25: =Gastos!$C25-Gastos!$D25 -> 50.00
B26: Mesas y sillas | C26: 100.00 | D26: 50.00 | E26: =Gastos!$C26-Gastos!$D26 -> 50.00
B27: Comida | C27: 0.00 | D27: 0.00 | E27: =Gastos!$C27-Gastos!$D27 -> 0.00
B28: Bebidas | C28: 0.00 | D28: 0.00 | E28: =Gastos!$C28-Gastos!$D28 -> 0.00
B29: Mantelería | C29: 0.00 | D29: 0.00 | E29: =Gastos!$C29-Gastos!$D29 -> 0.00
B30: Tarta | C30: 700.00 | D30: 700.00 | E30: =Gastos!$C30-Gastos!$D30 -> 0.00
B31: Detalles de los novios | C31: 50.00 | D31: 28.00 | E31: =Gastos!$C31-Gastos!$D31 -> 22.00
B32: Personal y compensaciones | C32: 0.00 | D32: 0.00 | E32: =Gastos!$C32-Gastos!$D32 -> 0.00
B33: Total de la recepción | C33: =SUBTOTAL(109,Recepción[Estimado]) -> 1,050.00 | D33: =SUBTOTAL(109,Recepción[Real]) -> 928.00 | E33: =SUBTOTAL(109,Recepción[Diferencia]) -> 122.00
B34: * No se incluye la decoración ni el entretenimiento
D36: ="¿Se han completado todos los gastos en la categoría "&B22&" ?" -> ¿Se han completado todos los gastos en la categoría Recepción* ? | E36: Sí
B38: Música y entretenimiento
B40: Categoría | C40: Estimado | D40: Real | E40: Diferencia
B41: Músicos para la ceremonia | C41: 400.00 | D41: 400.00 | E41: =Gastos!$C41-Gastos!$D41 -> 0.00
B42: Banda o DJ para la recepción | C42: 200.00 | D42: 100.00 | E42: =Gastos!$C42-Gastos!$D42 -> 100.00
B43: Total de la música y el entretenimiento | C43: =SUBTOTAL(109,Música[Estimado]) -> 600.00 | D43: =SUBTOTAL(109,Música[Real]) -> 500.00 | E43: =SUBTOTAL(109,Música[Diferencia]) -> 100.00
D45: ="¿Se han completado todos los gastos en la categoría "&B38&" ?" -> ¿Se han completado todos los gastos en la categoría Música y entretenimiento ? | E45: Sí
B47: Impresión o material de papelería
B49: Categoría | C49: Estimado | D49: Real | E49: Diferencia
B50: Invitaciones | C50: 500.00 | D50: 450.00 | E50: =Gastos!$C50-Gastos!$D50 -> 50.00
B51: Anuncios | C51: 200.00 | D51: 175.00 | E51: =Gastos!$C51-Gastos!$D51 -> 25.00
B52: Tarjetas de agradecimiento | C52: 100.00 | D52: 100.00 | E52: =Gastos!$C52-Gastos!$D52 -> 0.00
B53: Artículos de papelería personales | C53: 0.00 | D53: 0.00 | E53: =Gastos!$C53-Gastos!$D53 -> 0.00
B54: Libro de invitados | C54: 25.00 | D54: 25.00 | E54: =Gastos!$C54-Gastos!$D54 -> 0.00
B55: Programas | C55: 75.00 | D55: 80.00 | E55: =Gastos!$C55-Gastos!$D55 -> -5.00
B56: Servilletas de la recepción | C56: 35.00 | D56: 40.00 | E56: =Gastos!$C56-Gastos!$D56 -> -5.00
B57: Cajitas de cerillas | C57: 0.00 | D57: 0.00 | E57: =Gastos!$C57-Gastos!$D57 -> 0.00
B58: Caligrafía | C58: 0.00 | D58: 0.00 | E58: =Gastos!$C58-Gastos!$D58 -> 0.00
B59: Total de la impresión o el material de papelería | C59: =SUBTOTAL(109,Impresión[Estimado]) -> 935.00 | D59: =SUBTOTAL(109,Impresión[Real]) -> 870.00 | E59: =SUBTOTAL(109,Impresión[Diferencia]) -> 65.00
D61: ="¿Se han completado todos los gastos en la categoría "&B47&" ?" -> ¿Se han completado todos los gastos en la categoría Impresión o material de papelería ? | E61: No
B63: Fotografía
B65: Categoría | C65: Estimado | D65: Real | E65: Diferencia
B66: Oficiales | C66: 1,300.00 | D66: 1,300.00 | E66: =Gastos!$C66-Gastos!$D66 -> 0.00
B67: Impresiones adicionales | C67: 25.00 | D67: 25.00 | E67: =Gastos!$C67-Gastos!$D67 -> 0.00
B68: Álbumes de fotos | C68: 100.00 | D68: 100.00 | E68: =Gastos!$C68-Gastos!$D68 -> 0.00
B69: Vídeo | C69: 200.00 | D69: 150.00 | E69: =Gastos!$C69-Gastos!$D69 -> 50.00
B70: Total de la fotografía | C70: =SUBTOTAL(109,Fotografía[Estimado]) -> 1,625.00 | D70: =SUBTOTAL(109,Fotografía[Real]) -> 1,575.00 | E70: =SUBTOTAL(109,Fotografía[Diferencia]) -> 50.00
D72: ="¿Se han completado todos los gastos en la categoría "&B63&" ?" -> ¿Se han completado todos los gastos en la categoría Fotografía ? | E72: No
B74: Decoración*
B76: Categoría | C76: Estimado | D76: Real | E76: Diferencia
B77: Lazos para las sillas | C77: 0.00 | D77: 0.00 | E77: =Gastos!$C77-Gastos!$D77 -> 0.00
B78: Centros de mesa | C78: 300.00 | D78: 320.00 | E78: =Gastos!$C78-Gastos!$D78 -> -20.00
B79: Velas | C79: 100.00 | D79: 75.00 | E79: =Gastos!$C79-Gastos!$D79 -> 25.00
B80: Iluminación | C80: 100.00 | D80: 75.00 | E80: =Gastos!$C80-Gastos!$D80 -> 25.00
B81: Globos | C81: 200.00 | D81: 250.00 | E81: =Gastos!$C81-Gastos!$D81 -> -50.00
B82: Total de la decoración | C82: =SUBTOTAL(109,Decoración[Estimado]) -> 700.00 | D82: =SUBTOTAL(109,Decoración[Real]) -> 720.00 | E82: =SUBTOTAL(109,Decoración[Diferencia]) -> -20.00
B83: * No se incluyen las flores
D85: ="¿Se han completado todos los gastos en la categoría "&B74&" ?" -> ¿Se han completado todos los gastos en la categoría Decoración* ? | E85: Sí
B87: Flores
B89: Categoría | C89: Estimado | D89: Real | E89: Diferencia
B90: Ramos | C90: 500.00 | D90: 450.00 | E90: =Gastos!$C90-Gastos!$D90 -> 50.00
B91: Flor del novio | C91: 0.00 | D91: 0.00 | E91: =Gastos!$C91-Gastos!$D91 -> 0.00
B92: Ramilletes | C92: 0.00 | D92: 0.00 | E92: =Gastos!$C92-Gastos!$D92 -> 0.00
B93: Ceremonia | C93: 400.00 | D93: 400.00 | E93: =Gastos!$C93-Gastos!$D93 -> 0.00
B94: Recepción | C94: 0.00 | D94: 0.00 | E94: =Gastos!$C94-Gastos!$D94 -> 0.00
B95: Total de las flores | C95: =SUBTOTAL(109,Flores[Estimado]) -> 900.00 | D95: =SUBTOTAL(109,Flores[Real]) -> 850.00 | E95: =SUBTOTAL(109,Flores[Diferencia]) -> 50.00
D97: ="¿Se han completado todos los gastos en la categoría "&B87&" ?" -> ¿Se han completado todos los gastos en la categoría Flores ? | E97: No
B99: Regalos
B101: Categoría | C101: Estimado | D101: Real | E101: Diferencia
B102: Asistentes | C102: 1,000.00 | D102: 400.00 | E102: =Gastos!$C102-Gastos!$D102 -> 600.00
B103: Futuro cónyuge 1 | C103: 150.00 | D103: 200.00 | E103: =Gastos!$C103-Gastos!$D103 -> -50.00
B104: Futuro cónyuge 2 | C104: 150.00 | D104: 200.00 | E104: =Gastos!$C104-Gastos!$D104 -> -50.00
B105: Padres | C105: 25.00 | D105: 25.00 | E105: =Gastos!$C105-Gastos!$D105 -> 0.00
B106: Lectores y otros participantes | C106: 20.00 | D106: 250.00 | E106: =Gastos!$C106-Gastos!$D106 -> -230.00
B107: Total de los regalos | C107: =SUBTOTAL(109,Regalos[Estimado]) -> 1,345.00 | D107: =SUBTOTAL(109,Regalos[Real]) -> 1,075.00 | E107: =SUBTOTAL(109,Regalos[Diferencia]) -> 270.00
D109: ="¿Se han completado todos los gastos en la categoría "&B99&" ?" -> ¿Se han completado todos los gastos en la categoría Regalos ? | E109: No
B111: Viajes y transporte
B113: Categoría | C113: Estimado | D113: Real | E113: Diferencia
B114: Limusina/carruaje | C114: 100.00 | D114: 125.00 | E114: =Gastos!$C114-Gastos!$D114 -> -25.00
B115: Aparcamiento | C115: 0.00 | D115: 40.00 | E115: =Gastos!$C115-Gastos!$D115 -> -40.00
B116: Taxis | C116: 0.00 | D116: 0.00 | E116: =Gastos!$C116-Gastos!$D116 -> 0.00
B117: Total de los viajes y el transporte | C117: =SUBTOTAL(109,Viajes[Estimado]) -> 100.00 | D117: =SUBTOTAL(109,Viajes[Real]) -> 165.00 | E117: =SUBTOTAL(109,Viajes[Diferencia]) -> -65.00
D119: ="¿Se han completado todos los gastos en la categoría "&B111&" ?" -> ¿Se han completado todos los gastos en la categoría Viajes y transporte ? | E119: Sí
B121: Otros gastos
B123: Categoría | C123: Estimado | D123: Real | E123: Diferencia
B124: Oficiante | C124: 0.00 | D124: 0.00 | E124: =Gastos!$C124-Gastos!$D124 -> 0.00
B125: Cuota de la iglesia o del sitio de la ceremonia | C125: 40.00 | D125: 55.00 | E125: =Gastos!$C125-Gastos!$D125 -> -15.00
B126: Coordinador de la boda | C126: 0.00 | D126: 0.00 | E126: =Gastos!$C126-Gastos!$D126 -> 0.00
B127: Cena preboda | C127: 450.00 | D127: 450.00 | E127: =Gastos!$C127-Gastos!$D127 -> 0.00
B128: Fiesta de compromiso | C128: 20.00 | D128: 50.00 | E128: =Gastos!$C128-Gastos!$D128 -> -30.00
B129: Duchas | C129: 30.00 | D129: 20.00 | E129: =Gastos!$C129-Gastos!$D129 -> 10.00
B130: Citas del salón | C130: 45.00 | D130: 46.00 | E130: =Gastos!$C130-Gastos!$D130 -> -1.00
B131: Despedida de soltero y de soltera | C131: 0.00 | D131: 0.00 | E131: =Gastos!$C131-Gastos!$D131 -> 0.00
B132: Almuerzo | C132: 300.00 | D132: 400.00 | E132: =Gastos!$C132-Gastos!$D132 -> -100.00
B133: Habitaciones de hotel | C133: 0.00 | D133: 0.00 | E133: =Gastos!$C133-Gastos!$D133 -> 0.00
B134: Total de otros gastos | C134: =SUBTOTAL(109,OtrosGastos[Estimado]) -> 885.00 | D134: =SUBTOTAL(109,OtrosGastos[Real]) -> 1,021.00 | E134: =SUBTOTAL(109,OtrosGastos[Diferencia]) -> -136.00
D136: ="¿Se han completado todos los gastos en la categoría "&B121&" ?" -> ¿Se han completado todos los gastos en la categoría Otros gastos ? | E136: No

Sheet Cálculos (hidden)
B2: CATEGORÍA | C2: ESTIMADO | D2: Real | F2: Estimado | H2: DIFERENCIA
B3: Ropa | C3: =Total_Ropa_estimado -> 9,490.00 | D3: =Total_Ropa_real -> 9,770.00 | E3: =C3-F3 -> 9,480.00 | F3: =ROUNDUP($C$13/1000,0) -> 10.00 | G3: =$D$13-E3 -> 290 | H3: =D3-C3 -> 280.00
B4: Recepción | C4: =Total_recepción_estimado -> 1,050.00 | D4: =Total_recepción_real -> 928.00 | E4: =C4-F4 -> 1,040.00 | F4: =ROUNDUP($C$13/1000,0) -> 10.00 | G4: =$D$13-E4 -> 8730 | H4: =D4-C4 -> -122.00
B5: Música | C5: =Total_Música_entretenimiento_estimado -> 600.00 | D5: =Total_Música_entretenimiento_real -> 500.00 | E5: 590.00 | F5: 10.00 | G5: 9180 | H5: -100.00
B6: Impresión | C6: =Total_Impresión_Artículos_De_Papelería_estimado -> 935.00 | D6: =Total_Impresión_Artículos_De_Papelería_real -> 870.00 | E6: 925.00 | F6: 10.00 | G6: 8845 | H6: -65.00
B7: Fotografía | C7: =Total_Fotografía_estimado -> 1,625.00 | D7: =Total_Fotografía_real -> 1,575.00 | E7: 1,615.00 | F7: 10.00 | G7: 8155 | H7: -50.00
B8: Decoración | C8: =Total_Decoración_estimado -> 700.00 | D8: =Total_Decoración_real -> 720.00 | E8: 690.00 | F8: 10.00 | G8: 9080 | H8: 20.00
B9: Flores | C9: =Total_Flores_estimado -> 900.00 | D9: =Total_Flores_real -> 850.00 | E9: 890.00 | F9: 10.00 | G9: 8880 | H9: -50.00
B10: Regalos | C10: =Total_Regalos_estimado -> 1,345.00 | D10: =Total_Regalos_real -> 1,075.00 | E10: 1,335.00 | F10: 10.00 | G10: 8435 | H10: -270.00
B11: Viajes | C11: =Total_transporte_viajes_estimado -> 100.00 | D11: =Total_transporte_viajes_real -> 165.00 | E11: 90.00 | F11: 10.00 | G11: 9680 | H11: 65.00
B12: Otros | C12: =Total_Otros_Gastos_estimado -> 885.00 | D12: =Total_Otros_Gastos_real -> 1,021.00 | E12: 875.00 | F12: 10.00 | G12: 8895 | H12: 136.00
B13: Máx. | C13: =MAX(C3:D12) -> 9770 | D13: =MAX(C3:D12) -> 9770 | F13: 10.00
